Cogmind - Beta 10.2 @@@ ROGUE MODE // 2020.12.02 @ 21:57:23 Player: kerapace Result: Destroyed by 8R-AWN with 8R-AWN's Boregun Performance ------------- Evolutions (1) 500 Regions Visited (5) 1000 Robots Destroyed (39) 195 Value Destroyed (549) 549 Prototype IDs (1) 20 Alien Tech Used (0) 0 Bonus (5) 5 TOTAL SCORE: 2269 Bonus ------- Follower Combat Kills 83 Friendly Fire -78 Cogmind --------- Core Integrity 0/400 Matter 23/300 Energy 100/100 System Corruption 0% Temperature Cool (0) Movement Core (550) Ox10 Location -9/Exiles Parts ------- > --- POWER (1) -------- (None) > --- PROPULSION (2) --- (None) > --- UTILITY (4) ------ Large Storage Unit Large Storage Unit > --- WEAPON (2) ------- (None) > --- INVENTORY (16) --- Heavy Ion Engine Experimental Sensor Array Light Assault Rifle Mini Grenade Launcher Plasma Cutter Peak State ------------ > --- POWER ------------ Heavy Ion Engine > --- PROPULSION ------- Armored Treads Armored Treads > --- UTILITY ---------- Large Storage Unit Large Storage Unit Light Armor Plating Light Armor Plating > --- WEAPON ----------- Pulse Rifle Pulse Rifle > --- INVENTORY -------- Heavy Ion Engine Light Treads Improved Treads Armored Treads Armored Treads Experimental Sensor Array Advanced Signal Interpreter Light Armor Plating Light Armor Plating Light Assault Rifle Heavy Assault Rifle Heavy Assault Rifle Shotgun Shotgun Mini Grenade Launcher Plasma Cutter [Rating: 22] Favorites ----------- Power Improved Ion Engine Engine Improved Ion Engine Propulsion Light Treads Treads Light Treads Wheel Compact Wheel Utility Large Storage Unit Device Particle Charger Storage Large Storage Unit Processor Targeting Computer Protection Light Armor Plating Weapon Pulse Rifle Energy Gun Pulse Rifle Energy Cannon Beam Cannon Ballistic Gun Light Assault Rifle Launcher Mini Grenade Launcher Build | -11 -10 -10 -9 -9 -9 ------- Run | Scr Mat Min Mat Min Exi Slots Evolved 2 | . . . 2 . . Power . | . . . . . . Propulsion . | . . . . . . Utility 2 | . . . 2 . . Weapon . | . . . . . . Parts Attached 42 | 7 10 . 13 . 12 Power 5 | 2 1 . 2 . . Engine 5 | 2 1 . 2 . . Core . | . . . . . . Reactor . | . . . . . . Propulsion 8 | 2 1 . 1 . 4 Treads 7 | 1 1 . 1 . 4 Leg . | . . . . . . Wheel 1 | 1 . . . . . Hover . | . . . . . . Flight . | . . . . . . Utility 13 | 1 4 . 6 . 2 Device 1 | . . . 1 . . Storage 6 | 1 2 . 3 . . Processor 1 | . 1 . . . . Hackware . | . . . . . . Protection 5 | . 1 . 2 . 2 Artifact . | . . . . . . Weapon 16 | 2 4 . 4 . 6 Energy Gun 5 | . 1 . 4 . . Energy Cannon 1 | . 1 . . . . Ballistic Gun 9 | 2 2 . . . 5 Ballistic Cannon . | . . . . . . Launcher 1 | . . . . . 1 Special Weapon . | . . . . . . Impact Weapon . | . . . . . . Slashing Weapon . | . . . . . . Piercing Weapon . | . . . . . . Special Melee Weapon . | . . . . . . Unidentified Prototypes 1 | . . . 1 . . Parts Lost 16 | . 2 . 1 . 13 Power 2 | . 1 . . . 1 Propulsion 4 | . . . . . 4 Utility 4 | . . . . . 4 Weapon 6 | . 1 . 1 . 4 Highest Loss Streak 8 | . 2 . 1 . 8 Average Slot Usage (%) 94 | . 98 100 98 100 79 Engine 11 | . 13 14 11 11 10 Treads 18 | . 14 14 20 22 20 Wheel 5 | . 14 14 1 . . Device 2 | . . . 6 . . Storage 24 | . 14 28 30 22 22 Processor 2 | . 8 . . . . Protection 8 | . 4 . 5 22 19 Energy Gun 10 | . 1 14 20 22 1 Energy Cannon 1 | . 1 14 1 . . Ballistic Gun 7 | . 25 . . . 5 Naked Turns . | . . . . . . Heaviest Build 56 | 12 23 23 56 52 52 Greatest Support 43 | 16 20 16 43 43 43 Greatest Overweight (x) 2 | . 1 1 2 1 1 Average Overweight (x) . | . . 1 1 1 1 Largest Inventory Capacity 24 | 6 12 12 24 16 16 Average Capacity 14 | 5 7 12 19 16 16 Most Carried 20 | 3 12 12 20 16 16 Average Carried 13 | 1 7 11 17 16 12 Final Capacity 16 | 6 12 12 16 16 16 Final Carried 16 | 3 12 12 16 16 5 Class Distribution -------------------- 69% | Mutant 30% | Hauler-Mutant Dominant Class ---------------- Mutant | -10/Materials Mutant | -10/Mines Hauler-Mutant | -9/Materials Mutant | -9/Mines Mutant | -9/Exiles Resources | -11 -10 -10 -9 -9 -9 ----------- Run | Scr Mat Min Mat Min Exi Matter Collected 683 | 201 347 . 110 20 5 Remotely . | . . . . . . Salvage Created 1242 | . 250 192 761 28 11 Parts 62 | . 21 5 32 4 . Haulers Intercepted 8 | . 2 . 6 . . Recyclers Shooed 2 | . . 2 . . . Parts Field Recycled . | . . . . . . Retrieved Matter . | . . . . . . Parts Self-Destructed . | . . . . . . Prevented . | . . . . . . Kills | -11 -10 -10 -9 -9 -9 ------- Run | Scr Mat Min Mat Min Exi Combat Hostiles Destroyed 26 | . 9 . 13 . 4 Guns 21 | . 9 . 11 . 1 Cannons 2 | . . . 2 . . AOE 3 | . . . . . 3 Classes Destroyed 9 | . 3 2 3 . 1 Worker 5 | . 1 . 2 2 . Builder 1 | . . 1 . . . Hauler 8 | . 2 . 6 . . Recycler 2 | . . 2 . . . Operator 1 | . . . 1 . . Swarmer 13 | . 9 . 4 . . Grunt 6 | . . . 6 . . Sentry 3 | . . . 3 . . Assembled 4 | . . . . . 4 Best Kill Streak 5 | . 3 2 5 2 3 Combat Bots Only 5 | . 3 . 5 . 3 Max Kills in Single Turn 3 | . 2 1 2 2 3 Gunslinging 1 | . 1 . . . . Exploded 3 | . . . . . 3 Melee . | . . . . . . Uniques/NPCs Destroyed . | . . . . . . Combat | -11 -10 -10 -9 -9 -9 -------- Run | Scr Mat Min Mat Min Exi Damage Taken 3349 | . 509 . 525 . 2315 Core 548 | . 138 . 112 . 298 Absorbed by Shields . | . . . . . . Core Remaining (%) 72 | 100 . 44 . . . Volleys Fired 167 | . 65 6 52 1 43 Largest 2 | . 2 2 2 2 2 Hottest 126 | . 100 100 126 126 46 Shots Fired 319 | . 130 12 96 2 79 Gun 296 | . 124 6 87 2 77 Cannon 21 | . 6 6 9 . . Launcher 2 | . . . . . 2 Special . | . . . . . . Kinetic 195 | . 118 . . . 77 Thermal 122 | . 12 12 96 2 . Explosive 2 | . . . . . 2 Electromagnetic . | . . . . . . Robot Hit Streak 18 | . 8 6 13 3 18 Robot Miss Streak 7 | . 3 2 2 . 7 Penetration Max . | . . . . . . Secondary Targets 6 | . 4 . 1 . 1 Max Gunslinging Chain 1 | . 1 . 1 . 1 Shots Hit Robots 209 | . 74 9 68 1 57 Core Hits 67 | . 15 5 26 2 19 Critical Hits 2 | . 1 . 1 . . Critical Kills . | . . . . . . Critical Parts Destroyed 2 | . 1 . 1 . . Melee Attacks . | . . . . . . Impact . | . . . . . . Slashing . | . . . . . . Piercing . | . . . . . . Sneak Attacks . | . . . . . . Combat Hostiles . | . . . . . . Follow-up Attacks . | . . . . . . Damage Inflicted 3199 | . 627 153 1233 34 1152 Guns 2663 | . 557 66 1093 34 913 Cannons 297 | . 70 87 140 . . Explosions 205 | . . . . . 205 Melee . | . . . . . . Ramming 34 | . . . . . 34 Kinetic 1436 | . 523 . . . 913 Thermal 1524 | . 104 153 1233 34 . Explosive 205 | . . . . . 205 Electromagnetic . | . . . . . . Impact . | . . . . . . Slashing . | . . . . . . Piercing . | . . . . . . Highest Corruption . | . . . . . . Average Corruption . | . . . . . . Corruption Purged . | . . . . . . Overload Shots . | . . . . . . Overflow Damage . | . . . . . . Projectiles . | . . . . . . Explosions . | . . . . . . Melee . | . . . . . . Knockbacks . | . . . . . . Impact . | . . . . . . Kinetic . | . . . . . . Secondary . | . . . . . . Self-Inflicted Damage 28 | . . . . . 28 Shots 1 | . . . . . 1 Rammed 14 | . . . . . 14 Targets Rammed 14 | . . . . . 14 Kicked . | . . . . . . Crushed . | . . . . . . Highest Temperature 402 | . 192 78 402 78 19 Average Temperature 101 | . 35 37 126 41 13 Received Heat Transfer 146 | . . . 126 . 20 Effects 3 | . . . 3 . . Shutdowns 2 | . . . 2 . . Interference 1 | . . . 1 . . Siege Activations . | . . . . . . Robots Corrupted . | . . . . . . Combat Hostiles . | . . . . . . Parts Fried . | . . . . . . Impact Corruptions . | . . . . . . Robots Melted . | . . . . . . Combat Hostiles . | . . . . . . Parts Melted 6 | . . . 6 . . Heat Transferred 3099 | . 223 335 2467 74 . Parts Sabotaged . | . . . . . . Parts Stolen . | . . . . . . Parts Stripped . | . . . . . . Power Chain Reactions . | . . . . . . Missiles Intercepted . | . . . . . . Alert | -11 -10 -10 -9 -9 -9 ------- Run | Scr Mat Min Mat Min Exi Peak Influence 276 | . 197 23 276 76 . Initial 66 | . . 8 8 66 . Average 79 | . 63 13 107 67 . Maximum Alert Level 1 | . . . 1 . . Low Security (%) 93 | 100 100 100 87 100 . Level 1 6 | . . . 12 . . Level 2 . | . . . . . . Level 3 . | . . . . . . Level 4 . | . . . . . . Level 5 . | . . . . . . High Security . | . . . . . . Max Security . | . . . . . . Squads Dispatched 3 | . . . 3 . . Investigation 1 | . . . 1 . . Extermination . | . . . . . . Reinforcement 2 | . . . 2 . . Assault . | . . . . . . Garrison . | . . . . . . Intercept . | . . . . . . Construction Impeded . | . . . . . . Haulers Reinforced . | . . . . . . Stealth | -11 -10 -10 -9 -9 -9 --------- Run | Scr Mat Min Mat Min Exi Distress Signals 3 | . . . 3 . . Communications Jammed . | . . . . . . Distress Signals . | . . . . . . Times Spotted 49 | . 19 . 22 . 8 Peak Tracking Total 8 | . 6 . 5 . 8 Tactical Retreats 2 | . 1 . 1 . . Traps | -11 -10 -10 -9 -9 -9 ------- Run | Scr Mat Min Mat Min Exi Traps Triggered 2 | . 1 . 1 . . Indirectly . | . . . . . . Trap Hack Attempts . | . . . . . . Triggered . | . . . . . . Disarmed . | . . . . . . Reprogrammed . | . . . . . . Reused . | . . . . . . Traps Extracted . | . . . . . . Installed . | . . . . . . Triggered . | . . . . . . Machines | -11 -10 -10 -9 -9 -9 ---------- Run | Scr Mat Min Mat Min Exi Machines Disabled 1 | . . . . . 1 Max in Single Turn 1 | . . . . . 1 Machines Sabotaged . | . . . . . . Garrisons Compromised . | . . . . . . Overloaded Fab Kills . | . . . . . . Fab Network Shutdowns . | . . . . . . Hacking | -11 -10 -10 -9 -9 -9 --------- Run | Scr Mat Min Mat Min Exi Machines Accessed 3 | . 2 . 1 . . Terminals 3 | . 2 . 1 . . Fabricators . | . . . . . . Repair Stations . | . . . . . . Recycling Units . | . . . . . . Scanalyzers . | . . . . . . Garrison Access . | . . . . . . Total Hacks 3 | . 2 . 1 . . Successful 3 | . 2 . 1 . . Failed . | . . . . . . Catastrophic . | . . . . . . Database Lockouts . | . . . . . . Manual . | . . . . . . Terminals 3 | . 2 . 1 . . Fabricators . | . . . . . . Repair Stations . | . . . . . . Recycling Units . | . . . . . . Scanalyzers . | . . . . . . Garrison Access . | . . . . . . Terminal Hacks 3 | . 2 . 1 . . Branch Access Points 1 | . 1 . . . . Scanalyzer Index 1 | . . . 1 . . Hauler Manifests 1 | . 1 . . . . Fabricator Hacks . | . . . . . . Repair Station Hacks . | . . . . . . Recycling Unit Hacks . | . . . . . . Scanalyzer . | . . . . . . Garrison Access Hacks . | . . . . . . Unauthorized Hacks . | . . . . . . Terminals . | . . . . . . Fabricators . | . . . . . . Repair Stations . | . . . . . . Recycling Units . | . . . . . . Scanalyzers . | . . . . . . Garrison Access . | . . . . . . Data Cores Recovered . | . . . . . . Used . | . . . . . . Hacking Detections 1 | . . . 1 . . Full Trace Events . | . . . . . . Feedback Events . | . . . . . . Feedback Blocked . | . . . . . . Robot Schematics Acquired . | . . . . . . Robots Built . | . . . . . . Matter . | . . . . . . Time . | . . . . . . Total Robot Build Rating . | . . . . . . Part Schematics Acquired . | . . . . . . Parts Built . | . . . . . . Matter . | . . . . . . Time . | . . . . . . Total Part Build Rating . | . . . . . . Parts Repaired . | . . . . . . Time . | . . . . . . Parts Recycled . | . . . . . . Recycled Matter . | . . . . . . Retrieved Matter . | . . . . . . Retrieved Components . | . . . . . . Parts Scanalyzed . | . . . . . . Part Schematics Acquired . | . . . . . . Parts Damaged . | . . . . . . Bothacking | -11 -10 -10 -9 -9 -9 ------------ Run | Scr Mat Min Mat Min Exi Used RIF Installer . | . . . . . . Robots Hacked . | . . . . . . Non-combat . | . . . . . . Combat . | . . . . . . Robot Hacks Applied . | . . . . . . Relay Couplers Released . | . . . . . . Robots Rewired . | . . . . . . Allies Hacked . | . . . . . . Hacks Repelled . | . . . . . . Allies | -11 -10 -10 -9 -9 -9 -------- Run | Scr Mat Min Mat Min Exi Total Allies 3 | . . 3 . . . Largest Group 3 | . . 3 3 . . Highest-Rated Group 40 | . . 40 40 . . Highest-Rated Ally 16 | . . 16 16 . . Total Orders . | . . . . . . Ally Attacks 18 | . . . 18 . . Total Damage 198 | . . . 198 . . Kills 3 | . . . 3 . . Allies Corrupted . | . . . . . . Allies Melted . | . . . . . . Intel | -11 -10 -10 -9 -9 -9 ------- Run | Scr Mat Min Mat Min Exi Robot Analysis Total . | . . . . . . Derelict Logs Recovered 1 | . . 1 . . . Drone Launches . | . . . . . . Drone Recoveries . | . . . . . . Exploration | -11 -10 -10 -9 -9 -9 ------------- Run | Scr Mat Min Mat Min Exi Turns Passed 3521 | 64 828 265 1399 133 832 Spaces Moved 1900 | 52 554 219 662 73 340 Core 1 | 1 . . . . . Treads 1147 | . 102 . 632 73 340 Legs . | . . . . . . Wheels 752 | 51 452 219 30 . . Hover . | . . . . . . Flight . | . . . . . . Fastest Speed 50 | 50 100 110 110 180 180 Average Speed 151 | 99 111 110 179 180 189 Slowest Speed 200 | 100 160 110 200 180 190 Overloaded Moves . | . . . . . . Propulsion Burnouts . | . . . . . . Robots Hopped . | . . . . . . Cave-ins Triggered . | . . . . . . Exploration Rate (%) 46 | 4 86 73 64 16 36 Regions Visited 5 Branch Regions 3 Pre-discovered Areas . | . . . . . . Known Exits Taken 1 | . 1 . . . . Unknown Exits Taken 4 | 1 . 1 1 1 . Scrap Searched 2 | . . 1 . 1 . Spaces Dug . | . . . . . . Terrain Destroyed 11 | . . . . . 11 Melee . | . . . . . . Projectile . | . . . . . . AOE 11 | . . . . . 11 Terrain Rammed . | . . . . . . Walls Destroyed . | . . . . . . Machines Disabled . | . . . . . . Actions | -11 -10 -10 -9 -9 -9 --------- Run | Scr Mat Min Mat Min Exi Total 2220 | 60 651 231 784 73 421 Wait 26 | . 2 5 18 . 1 Move 1895 | 51 553 218 661 72 340 Hop . | . . . . . . Pick Up 40 | 2 14 1 20 . 3 Fast Attach 15 | 6 3 . 6 . . Attach 11 | . 1 . 2 . 8 Detach . | . . . . . . Swap 16 | 1 6 . 5 . 4 Drop 36 | . 7 1 20 . 8 Fire 167 | . 65 6 52 1 43 Melee . | . . . . . . Ram 4 | . . . . . 4 Kick . | . . . . . . Crush 10 | . . . . . 10 Escape Stasis . | . . . . . . Rewire . | . . . . . . Trap . | . . . . . . Miscellaneous . | . . . . . . Route ------- -11/Scrapyard -10/Materials (discovered 4 exits: *Mat x3 / *Min) -10/Mines -9/Materials (discovered 6 exits: *Mat x3 / [*Min] / *Sto x2) -9/Mines -9/Exiles (discovered 1 exit: [*Min]) History --------- Turn | Location | Event 22 | -11/Scrapyard | Discovered new exit (range 15) 65 | -11/Scrapyard | Entered Materials 300 | -10/Materials | Build established: Mutant 302 | -10/Materials | Discovered new exit (range 15) 304 | -10/Materials | Identified exit to Mines 496 | -10/Materials | Core integrity fell below 50% 549 | -10/Materials | Discovered new exit (range 16) 752 | -10/Materials | Discovered new exit (range 14) 893 | -10/Materials | Entered Mines 898 | -10/Mines | Assisted by bots powering up and referring to "LRC-V3" 937 | -10/Mines | Met a Derelict bent on vengeance 1023 | -10/Mines | Learned 8 Materials zone layouts 1108 | -10/Mines | Found a damaged Exp. Sensor Array with a note attached 1111 | -10/Mines | Found Prototype Device 1137 | -10/Mines | Discovered new exit (range 9) 1158 | -10/Mines | Entered Materials 1158 | -9/Materials | Accompanied by 3 allies 1158 | -9/Materials | Evolved 2 slots: Utility x2 1159 | -9/Materials | Identified exit to Storage 1159 | -9/Materials | Identified exit to Materials 1466 | -9/Materials | Build established: Hauler-Mutant 1699 | -9/Materials | Discovered exit to Materials (range 5) 2135 | -9/Materials | Discovered exit to Storage (range 16) 2402 | -9/Materials | Discovered exit to Materials (range 16) 2534 | -9/Materials | Discovered new exit (range 11) 2557 | -9/Materials | Entered Mines 2564 | -9/Mines | Build established: Mutant 2626 | -9/Mines | Deemed a non-threat by the Exiles lab entrance 2683 | -9/Mines | Discovered new exit (range 5) 2690 | -9/Mines | Entered Exiles 2726 | -9/Exiles | Discovered new exit (range 15) 2863 | -9/Exiles | Met 8R-AWN 2889 | -9/Exiles | Met EX-HEX 3130 | -9/Exiles | Met EX-BIN 3310 | -9/Exiles | Attacked by the Exiles 3366 | -9/Exiles | Core integrity fell below 50% 3414 | -9/Exiles | Lost 5 parts (2n2u1w) 3493 | -9/Exiles | Core integrity fell below 20% 3522 | -9/Exiles | Destroyed by 8R-AWN with 8R-AWN's Boregun Last Messages --------------- 03505_ Penetrated by HV Slug. 03505_ HV Slug penetrates Wall. 03505_ Penetrated by HV Slug. 03505_ HV Slug penetrates Wall. 03505_ Slammed into 8R-AWN. 03509_ Penetrated by HV Slug. 03509_ HV Slug penetrates Earth. 03512_ Slammed into 8R-AWN. 03512_ Destabilizing: Core damaged (-12). 03513_ Penetrated by HV Slug. 03513_ HV Slug penetrates Earth. 03513_ Penetrated by HV Slug. 03513_ Shotgun destroyed. 03513_ HV Slug penetrates Earth. 03518_ Penetrated by HV Slug. 03518_ Shotgun destroyed. 03518_ HV Slug penetrates Earth. 03518_ HV Slug penetrates Wall. 03518_ Slammed into 8R-AWN. 03522_ Penetrated by HV Slug. Map ----- +----------------------------------------------------+ | ?#" """#??????????????????????????????? | | ?#" """#??????????????????????????????? | | ?#" """##?????????????????????????????? | | ?## """""?????????????????????????????? | | ??# """##?????????????????????????????? | | ??#" "X" """""?????????????????????????????? | | ??#" """ #??????????????????????????????? | | ??#" """""""""#??????????????????????????????? | | ?##" ###########??????????????????????????????? | | ##"" #????????????????????????????????????????? | | #"" #????????????????????????????????????????? | | """ ##???????????????????????????????????????? | | "" ##???###########????????????????????????? | | " #####"""""""""##???????????????????????? | | " """ """"##??????????????????????? | | "" " #??????????????????????? | | " """#??????????????????????? | | "a"#???????????#####??????? | | " "##?????????##" #??????? | | ""###???????#" #??????? | | """""" """#??????##" ##?????? | | #####""" "#????### ###???? | | ????#####""" ###### ##### | | ????????##""" ;# ;# #""" | | ?????????#" " g | | ?????????# @ ## | | ?????????""" #### | | ????????? ""#?#"""""#### | | ???????? ""##?#######??# | | ??????? # ####???????????? | | ?????? #??????????????? | | ????? " #??????????????? | | ?????? "" ;# ##??????????????? | | ??????##""" " " " # ;### #??????????????? | | ????????####""" """#; ;##??# #?????????????? | | ????????????##""""?###;;;#####????##?????????????? | | ???????????????#?????# ##????????????????????????? | | ????????????????????# #??????????????????????????? | | ???????????????????# #???????????????????????????? | | ??????????????????# #????????????????????????????? | | ?????????????????# #?????????????????????????????? | | ?????????????????##??????????????????????????????? | | ?????????????????????????????????????????????????? | | ?????????????????????????????????????????????????? | | ?????????????????????????????????????????????????? | | ?????????????????????????????????????????????????? | | ?????????????????????????????????????????????????? | | ?????????????????????????????????????????????????? | | ?????????????????????????????????????????????????? | | ?????????????????????????????????????????????????? | +----------------------------------------------------+ Best States ------------- Heat Dissipation 28 Energy Generation 14 Energy Capacity 280 Matter Stores 300 Matter Capacity 300 Sight Range 16 Terrain Scan Density 10 Armor Coverage 300 Evasion (%) 40 Targeting Accuracy 5 Recoil Reduction 2 Particle Charging 15 Item Schematics ----------------- None Robot Schematics ------------------ None Fabricated ------------ Nothing Alien Tech Used ----------------- None Achievements -------------- None Challenges ------------ None Game ------ Seed TargetThiefChip Manual? 0 Play Time 00:25:24 Cumulative 406.6 hours Start 2020.12.02 @ 21:30:57 End 2020.12.02 @ 21:57:23 Sessions 1 Manual Loads 0 Difficulty Rogue Special Mode None Game No. 302 Rogue 302 Adventurer 0 Explorer 0 Win Type - Total 12 Types 11/0/0/1/0/0/0/0/0 Lore% 79 Gallery% 79 Achievement% 64 Wizard Run 0 Options --------- ASCII 0 Keyboard 0 Movement Vi Keybinds 0 Fullscreen 0 Font 16/SmallcapsGlow Map View 76x50 Tactical HUD 1 Map Filters NONE Filters NONE Steam 1 RUN: 6dd967dc-3ee0-4dc4-8f62-d672fabe7784